fUSD/lending_fUSD_20240615
["ID","MTS","AMOUNT","RATE_DAILY","PERIOD"]
[329566063,1718442852831,-534.1733158,0.00043,30]
[329566064,1718442852886,-5000.0,0.000435,60]
[329566065,1718442852924,-177.29278217,0.000436,120]
[329566066,1718442852978,-22481.14276678,0.000437,120]
[329566067,1718442853015,-33220.19662421,0.000437,120]
[329566068,1718442853060,-1500.0,0.000438,120]
[329566069,1718442853099,-2000.0,0.000438,30]
[329566070,1718442853133,-215.12879969,0.000438,120]
[329566071,1718442853173,-464.57216151,0.000438,30]
[329566072,1718442853232,-255.63117605,0.000438,120]
[329566073,1718442853264,-1410.93646044,0.000438,30]
[329566074,1718442853295,-500.0,0.00043835,120]
[329566075,1718442853337,-500.0,0.00043835,120]
[329566076,1718442853378,-500.0,0.00043835,120]
[329566077,1718442853452,-500.0,0.00043835,120]
[329566078,1718442853575,-500.0,0.00043835,120]
[329566079,1718442853617,-500.0,0.00043835,120]
[329566080,1718442853691,-500.0,0.00043835,120]
[329566081,1718442853798,-500.0,0.00043835,120]
[329566082,1718442853877,-500.0,0.00043835,120]
[329566083,1718442853916,-500.0,0.00043835,120]
[329566084,1718442853960,-500.0,0.00043835,120]
[329566085,1718442854008,-500.0,0.00043835,120]
[329566086,1718442854056,-302.59109475,0.00043835,120]
[329566087,1718442854128,1402.46730112,0.00032,60]
[329566088,1718442854290,323.92317652,0.00029,30]
[329566089,1718442855644,618.72119629,0.000317,30]
[329566090,1718442857350,536.14649954,0.00038475,120]
[329566091,1718442865268,45141.84115545,0.0004,30]
[329566092,1718442867213,1402.46730112,0.00032,60]
[329566267,1718443568355,590.05654368,0.00025,30]
[329566269,1718443652277,-155.00838263,0.00013536,2]
[329566279,1718443751194,-50.08625822,0.00013536,2]
[329566280,1718443751240,-160.0,0.00013537,2]
[329566281,1718443751284,-3983.993,0.00013759,2]
[329566282,1718443751322,-155.0,0.00013858,2]
[329566283,1718443751356,-300.0,0.00013858,2]
[329566284,1718443751404,-3202.11746559,0.00013859,2]
[329566285,1718443753127,-2815.06265306,0.00013859,2]
[329566293,1718443834155,-205.09464085,0.00013858,2]
[329566294,1718443834168,-1704.57595947,0.00013859,2]
[329566295,1718443834381,-3545.23594935,0.00013859,2]
[329566296,1718443835027,-2150.85297,0.00013859,2]
[329566304,1718443839596,-9279.75109035,0.00013859,2]
[329566305,1718443839646,-3000.0,0.0001386,2]
[329566306,1718443839668,-169.41659125,0.000139,2]
[329566307,1718443839701,-5592.80725531,0.000139,2]
[329566308,1718443840036,-185.00404044,0.000139,2]
[329566309,1718443840056,-1206.70714454,0.000139,2]
[329566310,1718443840069,-326.29793715,0.000139,2]
[329566311,1718443840116,-190.85369924,0.000139,2]
[329566312,1718443840150,-151.38,0.0001399,2]
[329566313,1718443840171,-151.38,0.0001399,2]
[329566314,1718443840190,-151.38,0.0001399,2]
[329566315,1718443840212,-155.0,0.00013998,2]
[329566316,1718443840240,-792.59442055,0.00013998,2]
[329566317,1718443840320,-2920.04658831,0.00013998,2]
[329566318,1718443840359,-253.40467695,0.00013998,2]
[329566319,1718443840398,-2758.92147926,0.00013998,2]
[329566320,1718443840701,-264.24,0.00013998,2]
[329566321,1718443840869,-1528.17100718,0.00013998,2]
[329566322,1718443840885,-155.38186445,0.00013998,2]
[329566323,1718443840903,-365.49406058,0.00013998,2]
[329566324,1718443840916,-241.67696198,0.00013998,2]
[329566325,1718443840929,-1499.30709078,0.00013999,2]
[329566326,1718443840975,-1768.74252701,0.00013999,2]
[329566327,1718443840997,-226.13403703,0.00014,2]
[329566351,1718443842268,-569.33763186,0.00014,2]
[329566352,1718443842286,-60945.4209184,0.00014,2]
[329566355,1718443844577,-287.93500002,0.00014,2]
[329566357,1718443845030,-806.29263537,0.00014,2]
[329566358,1718443845152,-621578.66656999,0.00014,2]
[329566359,1718443845165,-813.08350946,0.00014,2]
[329566360,1718443845556,-80499.63465395,0.00014,2]
[329566361,1718443845712,-676.12956,0.00014,2]
[329566362,1718443846153,-2043.72080312,0.00014,2]
[329566363,1718443846170,-804.21138755,0.00014,2]
[329566366,1718443848159,-161.97625999,0.000139,2]
[329566367,1718443848174,-97.6176828,0.00014,2]
[329566368,1718443848480,-523.98031464,0.00014,2]
[329566369,1718443848665,-14462.61894484,0.00014,2]
[329566370,1718443848975,-7263.15160859,0.00014,2]
[329566371,1718443848988,-9722.44943555,0.00014,2]
[329566372,1718443849268,-462.43344098,0.00014,2]
[329566373,1718443849388,-404.0,0.00014,2]
[329566374,1718443849467,-45437.67864387,0.00014,2]
[329566375,1718443860959,156.41489807,0.00012598,2]
[329566407,1718444113243,1852.24218539,9.449e-05,2]
[329566410,1718444234468,3422.69079531,0.00012979,7]
[329566416,1718444343886,166.64,0.00010065,2]
[329566472,1718444719614,300.66724725,0.00010065,2]
[329566475,1718444843959,-293.03141292,0.00010834,2]
[329566476,1718444852156,-300.66818129,0.00010833,2]
[329566479,1718444890870,802.03,0.00010102,2]
[329566481,1718444948216,-205.09464085,0.00010777,2]
[329566482,1718444948286,-307.70579132,0.00010778,2]
[329566483,1718444948320,-856.78597995,0.00010778,7]
[329566485,1718444966326,-482.38398921,0.00010777,2]
[329566486,1718444966371,-1543.21402005,0.00010778,7]
[329566487,1718444966407,-266.58672427,0.00010779,2]
[329566488,1718444966449,-4295.18609637,0.00010829,2]
[329566489,1718444966488,-646.33825097,0.00010864,2]
[329566490,1718444966527,-1068.57925236,0.00010999,2]
[329566491,1718444966563,-259.1,0.00011,2]
[329566492,1718444966791,-300.0,0.00011798,2]
[329566493,1718444966819,-26711.41163762,0.000118,2]
[329566494,1718444966871,-150.99,0.000118,2]
[329566495,1718444966906,-150.99,0.000118,2]
[329566496,1718444966953,-1225.82,0.00011881,2]
[329566497,1718444967016,-150.0,0.00011951,2]
[329566498,1718444967050,-236.45,0.00012005,2]
[329566499,1718444967080,-22198.22146884,0.00012014,2]
[329566500,1718444972325,-1701.77853116,0.00012014,2]
[329566501,1718444972369,-770.33,0.00012024,2]
[329566502,1718444972409,-4675.42,0.00012043,2]
[329566503,1718444972460,-6415.61340741,0.00012066,2]
[329566518,1718445032752,-300.0,0.00012066,2]
[329566519,1718445032778,-703.68659259,0.00012066,2]
[329566520,1718445032794,-1602.10994581,0.00012067,2]
[329566521,1718445035306,-9776.18005419,0.00012067,2]
[329566522,1718445035335,-1270.9,0.00012077,2]
[329566523,1718445035355,-250.0,0.00012077,2]
[329566524,1718445035376,-9999.99,0.00012077,2]
[329566525,1718445035396,-950.18,0.00012091,2]
[329566526,1718445035411,-533.27,0.0001216,2]
[329566527,1718445035439,-1298.04,0.0001216,2]
[329566528,1718445035453,-205.09464085,0.00012186,2]
[329566529,1718445035469,-167.87,0.00012187,2]
[329566530,1718445035481,-500.0,0.00012215,2]
[329566531,1718445035500,-150.99,0.00012215,2]
[329566532,1718445035511,-250.0,0.00012247,2]
[329566533,1718445035522,-1627.12,0.00012247,2]
[329566534,1718445035534,-802.03,0.00012366,2]
[329566535,1718445035545,-161.06,0.00012407,2]
[329566536,1718445035562,-1012.2,0.00012407,2]
[329566537,1718445035574,-161.06,0.00012423,2]
[329566538,1718445035612,-161.06,0.00012438,2]
[329566539,1718445035625,-161.06,0.00012454,2]
[329566540,1718445035643,-4799.59815669,0.00012461,2]
[329566541,1718445036165,-816.10184331,0.00012461,2]
[329566542,1718445036183,-161.06,0.00012469,2]
[329566543,1718445036203,-178.72,0.00012554,2]
[329566544,1718445036214,-161.8094454,0.00012636,2]
[329566545,1718445036224,-1000.0,0.00012637,2]
[329566546,1718445036240,-1088.33305211,0.00012978,2]
[329566547,1718445036257,-202.88720742,0.00012978,2]
[329566548,1718445036268,-260.0,0.00012978,2]
[329566549,1718445036278,-442.018825,0.00012978,2]
[329566550,1718445036291,-454.31418731,0.00012978,2]
[329566551,1718445036302,-2000.0,0.00012978,7]
[329566552,1718445036314,-777.74023309,0.00012978,2]
[329566553,1718445036326,-1524.41313607,0.00012978,2]
[329566554,1718445036337,-447.24679876,0.00012978,2]
[329566555,1718445036355,-2800.48924159,0.00012979,2]
[329566556,1718445036365,-16736.69153794,0.00012979,2]
[329566557,1718445036381,-40673.0336286,0.0001298,2]
[329566558,1718445036398,-284.90366048,0.00013,2]
[329566559,1718445036417,-420.0,0.00013245,2]
[329566560,1718445036427,-200.0,0.000135,4]
[329566561,1718445036439,-5800.0,0.00013529,2]
[329566562,1718445036453,-765.0,0.00013537,2]
[329566563,1718445036465,-155.19,0.000136,2]
[329566564,1718445036476,-499.99,0.000136,2]
[329566565,1718445036489,-500.0,0.000136,4]
[329566566,1718445036506,-187.73,0.00013699,2]
[329566567,1718445036518,-185.39,0.00013699,2]
[329566568,1718445036532,-500.0,0.00013699,2]
[329566569,1718445036543,-255.09,0.00013699,2]
[329566570,1718445036554,-200.0,0.00013699,2]
[329566571,1718445036564,-1556.02,0.00013699,2]
[329566572,1718445036575,-800.0,0.000137,5]
[329566573,1718445036589,-346.87386265,0.00013748,2]
[329566575,1718445036600,-715.0379,0.00013798,2]
[329566577,1718445036611,-1100.0,0.000138,5]
[329566579,1718445036623,-2567.49243,0.0001386,2]
[329566581,1718445036634,-164.35,0.00013888,2]
[329566583,1718445036645,-219.76,0.0001389,2]
[329566585,1718445036656,-536.63326235,0.00013897,2]
[329566586,1718445036667,-1400.0,0.000139,5]
[329566587,1718445036677,-326.29793715,0.000139,2]
[329566588,1718445036688,-263.7287831,0.00013902,2]
[329566589,1718445036713,-1817.46894476,0.00013902,2]
[329566590,1718445036726,-252.0112719,0.00013902,2]
[329566591,1718445036742,-151.38,0.0001399,2]
[329566593,1718445036753,-151.38,0.0001399,2]
[329566594,1718445036764,-151.38,0.0001399,2]
[329566595,1718445036788,-151.38,0.0001399,2]
[329566596,1718445036799,-151.38,0.0001399,2]
[329566597,1718445036809,-151.38,0.0001399,2]
[329566598,1718445036820,-151.38,0.0001399,2]
[329566599,1718445036830,-151.38,0.0001399,2]
[329566600,1718445036844,-151.38,0.0001399,2]
[329566601,1718445036856,-151.38,0.0001399,2]
[329566602,1718445036893,-151.38,0.0001399,2]
[329566603,1718445036923,-151.38,0.0001399,2]
[329566604,1718445036935,-193.18760792,0.00013998,2]
[329566606,1718445036951,-155.0,0.00013998,2]
[329566608,1718445036965,-155.0,0.00013998,2]
[329566609,1718445036980,-1254.37213807,0.00013998,2]
[329566611,1718445037000,-407.88409062,0.00013998,2]
[329566613,1718445037013,-449.30986604,0.00013998,2]
[329566614,1718445037028,-482.56957512,0.00013998,2]
[329566615,1718445037039,-1235.50346301,0.00013998,2]
[329566616,1718445037103,-209.15905144,0.00013999,2]
[329566617,1718445037123,-5901.39666759,0.00013999,2]
[329566618,1718445037147,-381437.9213547,0.00014,2]
[329566619,1718445037767,-269829.41435088,0.00014,2]
[329566620,1718445037793,-15819.94564484,0.00014,2]
[329566621,1718445037811,-826718.18440369,0.00014,2]
[329566622,1718445037841,-571.40745073,0.00014,2]
[329566624,1718445038739,-41696.13201306,0.00014,2]
[329566625,1718445039687,-1253.32475305,0.00014,2]
[329566635,1718445042417,-3377.68586456,0.00014,2]
[329566636,1718445042432,-715.84029988,0.00014,2]
[329566637,1718445042446,-1894.07448997,0.00014,2]
[329566638,1718445042912,-209.15905144,0.00013999,2]
[329566639,1718445042925,-90.84094856,0.00014,2]
[329566640,1718445043129,-2365.72498683,0.00014,2]
[329566641,1718445043678,-540.39,0.00013999,2]
[329566642,1718445043705,-5361.00666759,0.00013999,2]
[329566643,1718445043724,-3574.69450284,0.00014,2]
[329566644,1718445043741,-8947.21879473,0.00014,2]
[329566645,1718445043767,-8943.78386462,0.00014,2]
[329566646,1718445043780,-9077.54866152,0.00014,2]
[329566647,1718445043814,-8943.84023489,0.00014,2]
[329566649,1718445044856,-180.16890816,0.00013902,2]
[329566650,1718445044867,-1708.91701599,0.00014,2]
[329566651,1718445045172,-0.00589439,0.00014,2]
[329566652,1718445045329,-3005.4650009,0.00014,2]
[329566653,1718445045532,-266.88247612,0.00014,2]
[329566739,1718445058490,-2000.0,0.00013998,7]
[329566740,1718445058509,-145.84931674,0.00013998,2]
[329566741,1718445058524,-164.74115098,0.00013998,2]
[329566742,1718445058537,-209.15905144,0.00013999,2]
[329566743,1718445058548,-691.65594004,0.00013999,2]
[329566773,1718445701177,500.0,0.000228,120]
[329566777,1718445814344,500.0,0.00025,120]
[329566778,1718445832558,500.0,0.000264,120]
[329566779,1718445841542,173.12,0.00010167,2]
[329566780,1718445849365,500.0,0.000272,120]
[329566784,1718445968151,4826.52979096,0.000275,120]
[329566789,1718446015432,500.0,0.000272,120]
[329566790,1718446035553,-155.03845209,0.00011162,7]
[329566792,1718446074102,1000.0,0.000274,120]
[329566795,1718446165210,-626.34995757,0.00010877,2]
[329566796,1718446165253,-2338.76123193,0.00010877,2]
[329566797,1718446165291,-409.95945278,0.00010878,2]
[329566798,1718446165343,-721.82,0.00010879,2]
[329566799,1718446165375,-424.436727,0.00011158,2]
[329566800,1718446165446,-1003.81433295,0.0001116,2]
[329566801,1718446165508,-1042.0,0.00011192,7]
[329566807,1718446233381,-150.0,0.00012706,2]
[329566808,1718446233400,-115.88603959,0.00012743,2]
[329566809,1718446233593,-1907.8,0.00012743,2]
[329566810,1718446233669,-776.61022031,0.00012743,2]
[329566811,1718446234228,-638.98845715,0.00012743,2]
[329566812,1718446234364,-4527.47196708,0.00012743,2]
[329566813,1718446234415,-938.21279485,0.00012743,2]
[329566814,1718446234454,-1373.27,0.00012743,2]
[329566815,1718446234669,-322.91174239,0.00012743,2]
[329566816,1718446235010,-1345.92,0.00012743,2]
[329566817,1718446235070,-522.3297664,0.00012743,2]
[329566818,1718446235231,-624.91528117,0.00012743,2]
[329566819,1718446235262,-451.92492773,0.00012743,2]
[329566824,1718446239811,-1235.9041344,0.00012743,2]
[329566825,1718446240845,-371.01830304,0.00012743,2]
[329567006,1718446244717,-560.29715139,0.00012743,2]
[329567016,1718446245256,-1001.18899325,0.00012743,2]
[329567017,1718446246080,-3680.27022125,0.00012743,2]
[329567018,1718446246099,-250.0,0.00012801,2]
[329567019,1718446246115,-3116.27,0.00012809,2]
[329567020,1718446246138,-180.08,0.00012875,2]
[329567021,1718446246163,-285.84,0.00013059,2]
[329567022,1718446246211,-1042.0,0.00013142,7]
[329567023,1718446246228,-2338.76123193,0.00013142,2]
[329567024,1718446246244,-721.82,0.00013143,2]
[329567025,1718446246284,-1000.0,0.00013354,2]
[329567026,1718446246297,-250.0,0.00013369,2]
[329567027,1718446246309,-5800.0,0.0001352,2]
[329567028,1718446246324,-337.57,0.00013559,2]
[329567029,1718446246351,-241.61,0.00013699,2]
[329567032,1718446246368,-778.01,0.00013699,2]
[329567034,1718446246395,-10005.2963,0.00013799,2]
[329567035,1718446246415,-2139.57702,0.0001386,2]
[329567036,1718446246444,-500.0,0.00013887,2]
[329567037,1718446246457,-500.0,0.00013888,2]
[329567038,1718446246469,-200.0,0.00013888,2]
[329567039,1718446246481,-296.358008,0.000139,2]
[329567040,1718446246494,-223.1447,0.000139,2]
[329567041,1718446246506,-6234.50389122,0.000139,2]
[329567042,1718446246528,-326.29793715,0.000139,2]
[329567043,1718446246539,-168.0075146,0.000139,2]
[329567044,1718446246551,-157.72862368,0.00013902,2]
[329567045,1718446246564,-151.46,0.0001399,2]
[329567046,1718446246610,-151.46,0.0001399,2]
[329567047,1718446246622,-151.46,0.0001399,2]
[329567048,1718446246643,-151.46,0.0001399,2]
[329567049,1718446246658,-792.99144726,0.00013998,2]
[329567050,1718446246682,-3102.76307355,0.00013998,2]
[329567051,1718446246702,-9226.68140711,0.00013998,2]
[329567052,1718446246741,-1278.05478064,0.00013998,2]
[329567053,1718446246754,-400.0,0.00013998,2]
[329567054,1718446246767,-2514.58309854,0.00013998,2]
[329567055,1718446246778,-205.09464085,0.00013998,2]
[329567056,1718446246790,-5586.98275761,0.00013998,2]
[329567057,1718446246820,-436.61426308,0.00013998,2]
[329567058,1718446246832,-546.21197573,0.00013998,2]
[329567060,1718446246851,-1343.98300438,0.00013998,2]
[329567062,1718446246870,-1068.40538847,0.00013998,2]
[329567064,1718446246882,-659.46610537,0.00013998,2]
[329567066,1718446246902,-377.96079445,0.00013998,2]
[329567068,1718446246913,-625.76233718,0.00013998,2]
[329567070,1718446246924,-209.15905144,0.00013999,2]
[329567072,1718446246935,-5901.39666759,0.00013999,2]
[329567074,1718446246946,-160.63664696,0.00013999,2]
[329567076,1718446246962,-155.0,0.00013999,2]
[329567078,1718446246977,-3351.24585679,0.00013999,2]
[329567080,1718446246988,-472863.49920267,0.00014,2]
[329567102,1718446247311,-714.0215388,0.00014,2]
[329567166,1718446248471,-1422.62284,0.00014,2]
[329567168,1718446248486,-1412.22952965,0.00014,2]
[329568029,1718446267560,3821.52250057,0.00011192,2]
[329568030,1718446267603,681.86826099,0.00011192,2]
[329568031,1718446267673,2914.7371,0.00011192,2]
[329568032,1718446293202,1857.81889889,0.00025,30]
[329568033,1718446480290,-1278.25364587,0.00012601,2]
[329568034,1718446480321,-689.32217217,0.00012602,2]
[329568035,1718446480371,-4359.95386293,0.00012602,2]
[329568036,1718446480416,-5587.86229181,0.00012602,2]
[329568037,1718446480485,-2338.76123193,0.00012603,2]
[329568038,1718446480547,-626.72009064,0.00012603,2]
[329568039,1718446480583,-1042.0,0.00012603,7]
[329568040,1718446480628,-1077.12670465,0.00012606,2]
[329568041,1718446646116,-1042.0,0.00012969,7]
[329568042,1718446656783,1042.0,0.00013899,7]
[329568043,1718446674796,1042.0,0.00013899,7]
[329568047,1718446694821,1042.0,0.00013899,7]
[329568048,1718446716808,1042.0,0.00013899,7]
[329568049,1718446734835,1042.0,0.00013899,7]
[329568050,1718446752815,1042.0,0.00013899,7]
[329568051,1718446768807,644.2707526,0.00013899,7]
[329568055,1718446969791,-1068.57925236,0.0001076,2]
[329568056,1718446969835,-886.64940994,0.00010761,2]
[329568057,1718446969892,-733.86039657,0.00010762,2]
[329568058,1718446969932,-205.09464085,0.0001086,2]
[329568059,1718446969983,-2906.63590862,0.00010861,2]
[329568060,1718446970029,-837.7,0.00010971,2]
[329568061,1718446970075,-1000.0,0.00012601,2]
[329568062,1718446970118,-150.0,0.00012605,2]
[329568063,1718446970158,-300.0,0.00012605,2]
[329568064,1718446970192,-8928.16959535,0.00012606,2]
[329568065,1718446970240,-496.1,0.00012656,2]
[329568066,1718446970290,-180.08,0.00012706,2]
[329568067,1718446970329,-250.0,0.00012712,2]
[329568068,1718446970365,-999.99,0.00012712,2]
[329568069,1718446970405,-203.77,0.00012712,2]
[329568070,1718446970462,-5359.66,0.00012712,2]
[329568071,1718446970538,-3666.66,0.00012751,2]
[329568072,1718446970590,-165.38,0.00012797,2]
[329568073,1718446970667,-23900.0,0.0001285,2]
[329568074,1718446970729,-499.99,0.0001285,2]
[329568075,1718446970810,-608.38,0.0001285,2]
[329568076,1718446970888,-1220.67,0.0001285,2]
[329568077,1718446970990,-150.0,0.00012888,2]
[329568078,1718446971041,-1158.86,0.0001297,2]
[329568079,1718446971112,-837.7,0.00013235,2]
[329568080,1718446971172,-932.19772724,0.00013298,2]
[329568081,1718446971231,-1913.89,0.00013318,2]
[329568082,1718446971287,-459.07,0.00013318,2]
[329568083,1718446971348,-834.17,0.00013318,2]
[329568084,1718446971403,-513.28850771,0.00013436,2]
[329568085,1718446971458,-337.57,0.00013478,2]
[329568086,1718446971513,-250.0,0.00013655,2]
[329568087,1718446971570,-1806.68,0.00013699,2]
[329568088,1718446971641,-200.0,0.00013699,2]
[329568089,1718446971701,-1191.52,0.00013699,2]
[329568090,1718446971766,-241.62,0.00013699,2]
[329568091,1718446971826,-420.0,0.00013829,2]
[329568092,1718446971877,-200.0,0.0001383,2]
[329568093,1718446971927,-254.17838685,0.00013858,2]
[329568094,1718446971987,-500.0,0.00013887,2]
[329568095,1718446972045,-3505.491,0.00013887,2]
[329568096,1718446972133,-500.0,0.00013888,2]
[329568097,1718446972206,-200.0,0.00013888,2]
[329568098,1718446972275,-10000.0486,0.00013898,2]
[329568099,1718446972321,-296.358008,0.000139,2]
[329568100,1718446972369,-11743.2504,0.000139,2]
[329568101,1718446972416,-4761.9773,0.000139,2]
[329568102,1718446972468,-157.72862368,0.000139,2]
[329568103,1718446972522,-486.3734,0.000139,2]
[329568104,1718446972572,-8435.4094,0.000139,2]
[329568109,1718447200310,-160.00323424,0.00011947,2]
[329568110,1718447254152,-155.01014188,0.00011946,2]
[329568115,1718447362974,-155.0,0.00011943,2]
[329568116,1718447363022,-2422.19659052,0.00011944,2]
[329568117,1718447363073,-300.0,0.00011944,2]
[329568119,1718447363112,-19112.11746559,0.00011945,2]
[329568121,1718447363140,-188.46938346,0.00011946,2]
[329568122,1718447363180,-593.92676576,0.00011947,2]
[329568136,1718447433149,-250.0,0.0001345,2]
[329568137,1718447433176,-2444.1,0.0001345,2]
[329568138,1718447433204,-160.0,0.00013537,2]
[329568139,1718447433216,-193.29,0.00013699,2]
[329568140,1718447433228,-595.76,0.00013792,2]
[329568141,1718447433260,-3983.993,0.000138,2]
[329568142,1718447433272,-150.0,0.00013859,2]
[329568143,1718447433285,-2469.63414,0.0001386,2]
[329568144,1718447433311,-300.0,0.00013899,2]
[329568145,1718447433355,-5305.8187,0.000139,2]
[329568146,1718447433400,-223.1447,0.000139,2]
[329568147,1718447433412,-7927.54715321,0.000139,2]
[329568148,1718447433427,-185.00404044,0.000139,2]
[329568149,1718447433441,-324.14189686,0.000139,2]
[329568150,1718447433479,-180.83664652,0.000139,2]
[329568151,1718447433490,-222.80882396,0.000139,2]
[329568152,1718447433501,-151.56,0.0001399,2]
[329568153,1718447433525,-151.56,0.0001399,2]
[329568154,1718447433537,-151.56,0.0001399,2]
[329568155,1718447433563,-151.56,0.0001399,2]
[329568156,1718447433577,-151.56,0.0001399,2]
[329568157,1718447433593,-151.56,0.0001399,2]
[329568158,1718447433605,-155.0,0.00013994,2]
[329568159,1718447433634,-364.15605304,0.00013994,2]
[329568160,1718447433648,-1414.76148748,0.00013994,2]
[329568161,1718447433662,-406.68214796,0.00013994,2]
[329568162,1718447433678,-2352.56749518,0.00013994,2]
[329568163,1718447433690,-219.89360435,0.00013994,2]
[329568164,1718447433706,-155.10192553,0.00013994,2]
[329568165,1718447433728,-625.76233718,0.00013996,2]
[329568166,1718447433752,-307.56224401,0.00013996,2]
[329568167,1718447433771,-2514.58309854,0.00013996,2]
[329568168,1718447433800,-436.61426308,0.00013996,2]
[329568169,1718447433827,-400.0,0.00013996,2]
[329568170,1718447433858,-792.99144726,0.00013996,2]
[329568171,1718447433872,-6562.01785647,0.00013996,2]
[329568172,1718447433897,-3102.76307355,0.00013996,2]
[329568173,1718447433922,-546.21197573,0.00013996,2]
[329568174,1718447433944,-9226.68140711,0.00013996,2]
[329568175,1718447433967,-659.46610537,0.00013996,2]
[329568176,1718447433980,-162.76055612,0.00013996,2]
[329568177,1718447433994,-365.5464961,0.00013996,2]
[329568178,1718447434007,-546.19774639,0.00013996,2]
[329568179,1718447434019,-497.23248749,0.00013996,2]
[329568180,1718447434031,-1276.86808484,0.00013996,2]
[329568181,1718447434062,-1070.39984588,0.00013996,2]
[329568182,1718447434082,-377.96079445,0.00013997,2]
[329568183,1718447434104,-155.24042436,0.00013997,2]
[329568184,1718447434124,-2572.86232557,0.00013997,2]
[329568185,1718447434137,-210.690383,0.00013998,2]
[329568186,1718447434149,-193.13213728,0.00013998,2]
[329568187,1718447434162,-241.58417095,0.00013998,2]
[329568188,1718447434174,-645.71954176,0.00013998,2]
[329568189,1718447434194,-155.0,0.00013998,2]
[329568190,1718447434210,-3063.23211443,0.00013998,2]
[329568191,1718447434223,-155.47816944,0.00013998,2]
[329568192,1718447434234,-157.15925098,0.00013998,2]
[329568193,1718447434244,-7542.42300852,0.00013998,2]
[329568194,1718447434256,-407.68898763,0.00013998,2]
[329568195,1718447434270,-155.0,0.00013998,2]
[329568196,1718447434292,-155.0,0.00013998,2]
[329568197,1718447434304,-539.0803457,0.00013998,2]
[329568198,1718447434335,-235.10641019,0.00013998,2]
[329568199,1718447434348,-168.31981646,0.00013998,2]
[329568200,1718447434373,-2945.42862881,0.00013998,2]
[329568201,1718447434387,-327.03263673,0.00013998,2]
[329568202,1718447434402,-155.0,0.00013998,2]
[329568203,1718447434423,-209.15905144,0.00013999,2]
[329568204,1718447434437,-5901.39666759,0.00013999,2]
[329568206,1718447434484,-349.70491421,0.00013999,5]
[329568208,1718447434509,-511.0,0.00014,2]
[329568209,1718447434542,-973906.01772411,0.00014,2]
[329568210,1718447435037,-2422.19659052,0.00013449,2]
[329568211,1718447435062,-25404.50998157,0.00014,2]
[329568212,1718447435671,-101.93305454,0.00014,2]
[329568214,1718447439289,-209.15905144,0.00013999,2]
[329568215,1718447439300,-460.00894856,0.00013999,2]
[329568216,1718447439706,-789.66217762,0.00013999,2]
[329568217,1718447440846,-4651.72554141,0.00013999,2]
[329568218,1718447440864,-61547.27445859,0.00014,2]
[329568219,1718447440961,-34471.00817943,0.00014,2]
[329568225,1718447442121,-209.15905144,0.00013999,2]
[329568226,1718447442135,-93066.03351894,0.00014,2]
[329568227,1718447442177,-3580.78588787,0.00014,2]
[329568228,1718447443037,-2160.00461446,0.00013999,2]
[329568231,1718447443667,-3741.39205313,0.00013999,2]
[329568232,1718447443689,-2534.91266529,0.00014,2]
[329568233,1718447443906,-4019.09127962,0.00014,2]
[329568234,1718447443962,-315.6,0.00014,2]
[329568235,1718447444005,-1928.1375,0.00014,2]
[329568236,1718447444021,-382.60523184,0.00014,2]
[329568237,1718447444404,-807.50002,0.00014,2]
[329568255,1718447445254,-1913.60066779,0.00014,2]
[329568257,1718447445274,-549847.02374033,0.00014,2]
[329568279,1718447445868,-344.447979,0.00014,2]
[329568286,1718447446201,-1432.4982958,0.00014,2]
[329568287,1718447446228,-2953.82764984,0.00014,2]
[329568288,1718447446267,-2693.90196,0.00014,2]
[329568319,1718447447874,-209.15905144,0.00013999,2]
[329568320,1718447447895,-867.99320171,0.00013999,2]
[329568321,1718447448078,-393.04392363,0.00013999,2]